Cogmind - Beta 15 @@@ ROGUE MODE // 2025.05.31 @ 17:49:45 Player: DZKane Result: Destroyed by H-61 Shepherd with Heavy Assault Cannon Performance ------------- Evolutions (2) 1000 Regions Visited (3) 600 Robots Destroyed (22) 110 Value Destroyed (720) 720 Prototype IDs (5) 100 Alien Tech Used (0) 0 Bonus (0) 0 TOTAL SCORE: 2530 Bonus ------- None Cogmind --------- Core Integrity 0/550 Matter 165/300 Energy 53/100 System Corruption 0% Temperature Cool (0) Movement Core (400) Ox7 Location -8/Materials Parts ------- > --- POWER (1) -------- (None) > --- PROPULSION (4) --- (None) > --- UTILITY (3) ------ Large Storage Unit > --- WEAPON (3) ------- Spear Spear > --- INVENTORY (15) --- Aluminum Leg Improved Aluminum Leg Heat Sink High-capacity Storage Unit Large Battery (200) Improved Terrain Scanner Medium Armor Plating Assault Rifle Grenade Launcher Mini Grenade Launcher Peak State ------------ > --- POWER ------------ Deuterium Engine > --- PROPULSION ------- Aluminum Leg Aluminum Leg Aluminum Leg Aluminum Leg > --- UTILITY ---------- Large Storage Unit Seismic Detector Melee Analysis Suite > --- WEAPON ----------- Great Maul Spear Spear > --- INVENTORY -------- Aluminum Leg Aluminum Leg Aluminum Leg Aluminum Leg Improved Aluminum Leg Heat Sink High-capacity Storage Unit Large Battery Improved Terrain Scanner Medium Armor Plating Assault Rifle Grenade Launcher Grenade Launcher Spear [Rating: 25] Favorites ----------- Power Deuterium Engine Engine Deuterium Engine Propulsion Aluminum Leg Leg Aluminum Leg Utility Large Storage Unit Device Heat Sink Storage Large Storage Unit Processor Melee Analysis Suite Weapon Assault Rifle Energy Gun Improved Medium Laser Ballistic Gun Assault Rifle Launcher Grenade Launcher Impact Weapon Great Maul Piercing Weapon Spear Build | -11 -10 -9 -8 ------- Run | Yrd Mat Mat Mat Slots Evolved 4 | . . 2 2 Power . | . . . . Propulsion 2 | . . 2 . Utility 1 | . . . 1 Weapon 1 | . . . 1 Parts Attached 32 | . 4 14 14 Power 2 | . . 2 . Engine 2 | . . 2 . Core . | . . . . Reactor . | . . . . Propulsion 11 | . 1 8 2 Treads . | . . . . Leg 11 | . 1 8 2 Wheel . | . . . . Hover . | . . . . Flight . | . . . . Utility 6 | . 3 . 3 Device 3 | . 1 . 2 Storage 2 | . 2 . . Processor 1 | . . . 1 Hackware . | . . . . Protection . | . . . . Artifact . | . . . . Weapon 13 | . . 4 9 Energy Gun 1 | . . 1 . Energy Cannon . | . . . . Ballistic Gun 6 | . . 3 3 Ballistic Cannon . | . . . . Launcher 1 | . . . 1 Special Weapon . | . . . . Impact Weapon 1 | . . . 1 Slashing Weapon . | . . . . Piercing Weapon 4 | . . . 4 Special Melee Weapon . | . . . . Unidentified Prototypes 1 | . . 1 . Parts Lost 13 | . . . 13 Power 1 | . . . 1 Propulsion 6 | . . . 6 Utility 2 | . . . 2 Weapon 4 | . . . 4 Highest Loss Streak 12 | . . . 12 To Critical Strikes . | . . . . Average Backups 12 | . 9 13 14 Power . | . 1 . . Propulsion 4 | . 5 2 4 Utility 3 | . 1 3 3 Weapon 5 | . 1 7 5 Tool/Special . | . . . . Unused Backups 12 | . 2 . 10 Power . | . . . . Propulsion 3 | . 2 . 1 Utility 4 | . . . 4 Weapon 5 | . . . 5 Tool/Special . | . . . . Average Slot Usage (%) 96 | . 94 99 95 Engine 10 | . 14 11 8 Leg 35 | . 28 43 34 Device 11 | . 8 11 14 Storage 10 | . 14 11 9 Ballistic Gun 21 | . 28 22 17 Impact Weapon 1 | . . . 2 Piercing Weapon 2 | . . . 5 Peak Build Rating 25 | . 8 14 25 Average Rating 13 | . 7 11 17 On Entrance 8 | 6 6 8 13 Naked Turns . | . . . . Heaviest Build 39 | 12 28 35 39 Greatest Support 40 | 20 20 40 40 Greatest Overweight (x) 1 | . 1 . 1 Average Overweight (x) . | . . . . Largest Inventory Capacity 15 | . 15 15 15 Average Capacity 13 | . 10 15 15 Most Carried 15 | . 14 15 15 Average Carried 12 | . 9 13 14 Final Capacity 15 | 8 15 15 15 Final Carried 15 | 6 14 15 10 Class Distribution -------------------- 33% | Scavenger-Mutant 25% | Scavenger-Gunner 25% | Mutant 15% | Gladiator Dominant Class ---------------- Mutant | -10/Materials Scavenger-Mutant | -9/Materials Scavenger-Gunner | -8/Materials Resources | -11 -10 -9 -8 ----------- Run | Yrd Mat Mat Mat Matter Collected 822 | 200 90 272 260 Remotely . | . . . . Salvage Created 895 | . 186 350 359 Parts 46 | . 11 19 16 Haulers Intercepted . | . . . . Recyclers Shooed . | . . . . Parts Field Recycled . | . . . . Retrieved Matter . | . . . . Parts Self-Destructed . | . . . . Prevented . | . . . . Kills | -11 -10 -9 -8 ------- Run | Yrd Mat Mat Mat Combat Hostiles Destroyed 19 | . 4 10 5 Melee 1 | . . . 1 Guns 18 | . 4 10 4 Classes Destroyed 6 | . 2 2 2 Recycler 1 | . . . 1 Watcher 2 | . 1 . 1 Swarmer 3 | . . 3 . Grunt 13 | . 4 6 3 Brawler 1 | . . . 1 Sentry 2 | . . 1 1 Best Kill Streak 5 | . 2 5 3 Combat Bots Only 5 | . 2 5 2 Max Kills in Single Turn 2 | . 1 2 1 Gunslinging 1 | . . 1 . Exploded . | . . . . Melee 1 | . . . 1 Uniques/NPCs Destroyed . | . . . . Combat | -11 -10 -9 -8 -------- Run | Yrd Mat Mat Mat Hostile Shots Fired 176 | . 10 65 101 Missed 47 | . 2 22 23 Hits 129 | . 8 43 78 Projectile 129 | . 8 43 78 Critical Strikes 8 | . . . 8 Damage Taken 2065 | . 109 460 1496 Core 600 | . 16 21 563 Absorbed by Shields . | . . . . Core Remaining (%) 95 | 100 93 94 . Volleys Fired 70 | . 13 38 19 Largest 3 | . 2 2 3 Hottest 63 | . 40 40 63 Shots Fired 158 | . 26 76 56 Gun 158 | . 26 76 56 Cannon . | . . . . Launcher . | . . . . Special . | . . . . Kinetic 158 | . 26 76 56 Thermal . | . . . . Explosive . | . . . . Electromagnetic . | . . . . Robot Hit Streak 10 | . 5 10 10 Robot Miss Streak 5 | . 2 5 5 Penetration Max . | . . . . Secondary Targets 3 | . . 3 . Max Gunslinging Chain 1 | . . 1 . Shots Hit Robots 116 | . 17 48 51 Core Hits 46 | . 9 19 18 Critical Kills . | . . . . Critical Parts Destroyed . | . . . . Critical Strikes . | . . . . Melee Attacks 20 | . . . 20 Impact 7 | . . . 7 Slashing . | . . . . Piercing 13 | . . . 13 Sneak Attacks . | . . . . Combat Hostiles . | . . . . Follow-up Attacks 6 | . . . 6 Damage Inflicted 1606 | . 213 612 781 Guns 1312 | . 213 609 490 Cannons . | . . . . Explosions . | . . . . Melee 291 | . . . 291 Ramming 3 | . . 3 . Kinetic 1312 | . 213 609 490 Thermal . | . . . . Explosive . | . . . . Electromagnetic . | . . . . Impact 88 | . . . 88 Slashing . | . . . . Piercing 203 | . . . 203 Highest Corruption 2 | . . 2 . Average Corruption 2 | . . 2 . Corruption Purged . | . . . . Corruption Blocked . | . . . . Effects 4 | . . 4 . Parts Rejected 1 | . . 1 . Parts Fused 1 | . . 1 . Misfires 1 | . . 1 . Weapon Failures 1 | . . 1 . Overload Shots . | . . . . Overflow Damage . | . . . . Projectiles . | . . . . Explosions . | . . . . Melee . | . . . . Knockbacks . | . . . . Impact . | . . . . Kinetic . | . . . . Secondary . | . . . . Self-Inflicted Damage . | . . . . Shots . | . . . . Rammed . | . . . . Targets Rammed 1 | . . 1 . Kicked 1 | . . 1 . Crushed . | . . . . Highest Temperature 13 | . 2 . 13 Average Temperature 5 | . 2 . 9 Received Heat Transfer 606 | . 60 195 351 Siege Activations . | . . . . Martial Activations . | . . . . Shielding Activations . | . . . . Robots Disrupted . | . . . . Combat Hostiles . | . . . . Robots Corrupted . | . . . . Combat Hostiles . | . . . . Parts Fried . | . . . . Impact Corruptions . | . . . . Robots Melted . | . . . . Combat Hostiles . | . . . . Parts Melted . | . . . . Heat Transferred . | . . . . Parts Sabotaged . | . . . . Parts Stolen . | . . . . Parts Stripped . | . . . . Power Chain Reactions . | . . . . Alert | -11 -10 -9 -8 ------- Run | Yrd Mat Mat Mat Maximum Alert Level . | . . . . Low Security (%) 100 | . 100 100 100 Level 1 . | . . . . Level 2 . | . . . . Level 3 . | . . . . Level 4 . | . . . . Level 5 . | . . . . High Security . | . . . . Max Security . | . . . . Peak Influence 134 | . 57 134 110 Initial 48 | . . 2 48 Average 56 | . 25 78 57 Influence Increases 545 | . 101 268 176 Destroy 0b10 Robot/C 380 | . 80 200 100 Destroy 0b10 Robot/NC 15 | . 5 . 10 Destroy Leader 84 | . 12 50 22 Successful Hack 31 | . 4 18 9 Disable Machine 15 | . . . 15 Destroy Structure 5 | . . . 5 Lose Combat Pursuer 15 | . . . 15 Influence Decreases 545 | . 94 161 290 Entered New Map 71 | . . 5 66 Time Decay 448 | . 94 156 198 Lost Part 26 | . . . 26 Squads Dispatched 7 | . . 3 4 Investigation 1 | . . . 1 Extermination . | . . . . Reinforcement 6 | . . 3 3 Assault . | . . . . Garrison . | . . . . Intercept . | . . . . Searches Triggered . | . . . . Construction Impeded 1 | . . 1 . Haulers Reinforced . | . . . . Active Scanning Responses . | . . . . Cargo Convoy Interrupts . | . . . . Stealth | -11 -10 -9 -8 --------- Run | Yrd Mat Mat Mat Distress Signals 2 | . . . 2 Communications Jammed . | . . . . Distress Signals . | . . . . Times Spotted 40 | . 5 16 19 Peak Tracking Total 8 | . 2 5 8 Tactical Retreats 1 | . . . 1 Traps | -11 -10 -9 -8 ------- Run | Yrd Mat Mat Mat Traps Triggered 1 | . . 1 . Indirectly . | . . . . Trap Hack Attempts . | . . . . Triggered . | . . . . Disarmed . | . . . . Reprogrammed . | . . . . Reused . | . . . . Traps Extracted . | . . . . Installed . | . . . . Triggered . | . . . . Machines | -11 -10 -9 -8 ---------- Run | Yrd Mat Mat Mat Machines Disabled 1 | . . . 1 Max in Single Turn 1 | . . . 1 Machines Repaired . | . . . . Machines Dismantled . | . . . . Machines Sabotaged . | . . . . Overloaded Fab Kills . | . . . . Hacking | -11 -10 -9 -8 --------- Run | Yrd Mat Mat Mat Machines Accessed 8 | . 2 3 3 Terminals 8 | . 2 3 3 Fabricators . | . . . . Repair Stations . | . . . . Recycling Units . | . . . . Scanalyzers . | . . . . Garrison Access . | . . . . Total Hacks 20 | . 4 9 7 Successful 9 | . 1 5 3 Failed 11 | . 3 4 4 Catastrophic . | . . . . Database Lockouts . | . . . . Manual 13 | . 4 5 4 Terminals 20 | . 4 9 7 Fabricators . | . . . . Repair Stations . | . . . . Recycling Units . | . . . . Scanalyzers . | . . . . Garrison Access . | . . . . Terminal Hacks 2 | . . 2 . Prototype ID Bank 2 | . . 2 . Fabricator Hacks . | . . . . Repair Station Hacks . | . . . . Recycling Unit Hacks . | . . . . Scanalyzer . | . . . . Garrison Access Hacks . | . . . . Unauthorized Hacks 7 | . 1 3 3 Terminals 7 | . 1 3 3 Botnet 1 | . . . 1 Skim 6 | . 1 3 2 Fabricators . | . . . . Repair Stations . | . . . . Recycling Units . | . . . . Scanalyzers . | . . . . Garrison Access . | . . . . Data Cores Recovered . | . . . . Used . | . . . . Hacking Detections 8 | . 2 3 3 Full Trace Events 1 | . . . 1 Feedback Events . | . . . . Feedback Blocked . | . . . . Robot Schematics Acquired . | . . . . Robots Built . | . . . . Authchips . | . . . . Time . | . . . . Total Robot Build Rating . | . . . . Part Schematics Acquired . | . . . . Parts Built . | . . . . Authchips . | . . . . Time . | . . . . Total Part Build Rating . | . . . . Parts Repaired . | . . . . Time . | . . . . Parts Recycled . | . . . . Recycled Matter . | . . . . Retrieved Matter . | . . . . Retrieved Components . | . . . . Parts Scanalyzed . | . . . . Part Schematics Acquired . | . . . . Parts Damaged . | . . . . Bothacking | -11 -10 -9 -8 ------------ Run | Yrd Mat Mat Mat Used RIF Installer . | . . . . Robots Hacked . | . . . . Non-combat . | . . . . Combat . | . . . . Robot Hacks Applied . | . . . . Relay Couplers Released . | . . . . Fabnet Peak Effective % . | . . . . Robots Rewired . | . . . . Allies Hacked . | . . . . Hacks Repelled . | . . . . Allies | -11 -10 -9 -8 -------- Run | Yrd Mat Mat Mat Total Allies . | . . . . Largest Group . | . . . . Highest-Rated Group . | . . . . Highest-Rated Ally . | . . . . Total Orders . | . . . . Ally Attacks . | . . . . Total Damage . | . . . . Kills . | . . . . Allies Corrupted . | . . . . Allies Melted . | . . . . Intel | -11 -10 -9 -8 ------- Run | Yrd Mat Mat Mat Active Infowar (turns) 408 | . . . 408 Seismic 408 | . . . 408 Robot Analysis Total . | . . . . Derelict Logs Recovered . | . . . . Drone Launches . | . . . . Drone Recoveries . | . . . . Exploration | -11 -10 -9 -8 ------------- Run | Yrd Mat Mat Mat Turns Passed 995 | . 243 329 423 Spaces Moved 533 | 1 148 147 237 Core . | . . . . Treads . | . . . . Legs 533 | 1 148 147 237 Wheels . | . . . . Hover . | . . . . Flight . | . . . . Fastest Speed 120 | 120 120 120 120 Average Speed 121 | 120 124 120 120 Slowest Speed 190 | 120 190 120 190 Overloaded Moves . | . . . . Propulsion Burnouts . | . . . . Robots Hopped . | . . . . Potential Cave-ins . | . . . . Cave-ins Triggered . | . . . . Exploration Rate (%) 17 | 2 29 16 23 Regions Visited 3 Branch Regions . Pre-discovered Areas . | . . . . Known Exits Taken . | . . . . Unknown Exits Taken 3 | 1 1 1 . Scrap Searched . | . . . . Spaces Dug 2 | . . . 2 Terrain Destroyed 2 | . . . 2 Melee 2 | . . . 2 Projectile . | . . . . AOE . | . . . . Terrain Rammed . | . . . . Walls Destroyed . | . . . . Machines Disabled . | . . . . Actions | -11 -10 -9 -8 --------- Run | Yrd Mat Mat Mat Total 716 | . 181 227 308 Wait 21 | . 6 8 7 Move 530 | . 147 146 237 Hop . | . . . . Pick Up 20 | . 8 6 6 Fast Attach 8 | . 2 4 2 Attach 12 | . . 2 10 Detach . | . . . . Swap 15 | . 2 8 5 Drop 25 | . 3 14 8 Fire 70 | . 13 38 19 Melee 14 | . . . 14 Ram . | . . . . Kick 1 | . . 1 . Crush . | . . . . Escape Stasis . | . . . . Rewire . | . . . . Trap . | . . . . Miscellaneous . | . . . . Route ------- -11/Scrapyard -10/Materials -9/Materials -8/Materials (discovered 1 exit: [*Fac]) History --------- Turn | Location | Event 1 | -11/Scrapyard | Discovered new exit (range 0) 1 | -11/Scrapyard | Entered Materials 187 | -10/Materials | Discovered new exit (range 11) 244 | -10/Materials | Entered another Materials area 244 | -9/Materials | Evolved 2 slots: Propulsion x2 447 | -9/Materials | Discovered new exit (range 12) 542 | -9/Materials | Build established: Scavenger-Mutant 573 | -9/Materials | Entered another Materials area 573 | -8/Materials | Evolved 2 slots: Utility x1, Weapon x1 954 | -8/Materials | Discovered new exit (range 4) 986 | -8/Materials | Core integrity fell below 50% 992 | -8/Materials | Core integrity fell below 20% 996 | -8/Materials | Destroyed by H-61 Shepherd with Heavy Assault Cannon Last Messages --------------- 00967_ Critical hit (Burn: +37). 00968_ Melee Analysis Suite destroyed. 00968_ Aluminum Leg destroyed. 00968_ G-47 Trooper destroyed. 00970_ Aluminum Leg destroyed. 00975_ Spear follow-up attack on H-61 Shepherd. 00975_ Aluminum Leg destroyed. 00976_ H-61 Shepherd calls for reinforcements. 00976_ ALERT: Hostile activity reported, dispatching reinforcements to area. 00978_ Great Maul destroyed. 00980_ Spear follow-up attack on H-61 Shepherd. 00980_ Aluminum Leg destroyed. 00982_ Seismic Detector destroyed. 00984_ Aluminum Leg destroyed. 00985_ Spear destroyed. 00985_ Critical hit (Blast). 00987_ Spear follow-up attack on H-61 Shepherd. 00991_ Critical hit (Burn: +37). Map ----- +----------------------------------------------------+ | ???????????????????????????????? | | ???????????????????????????????? | | ???????????????????????????????? | | ???????????????????????????????? | | ???????????????????????????????? | | ???????????????????????????????? | | ???????????????????????????????? | | ???????????????????????????????? | | ???????????????????????????????? | | ???????????????????????????????? | | ????????????????????????? ?????? | | ????????????????????????? ?????? | | ????????????????????????? ?????? | | ????????????????????????? ?????? | | ????????????????????????? ?????? | | ?????????????????????????+?????? | | ????????????????????????? ?????? | | ????????????????????????# #????? | | ????????????????????????# #????? | | ????????????????????????# #????? | | ????????????????????????# #????? | | ???????????####?????????# #????? | | ?????????? ???????#x#????? | | ?????????? ?????#g###### | | ??????????? ??##x# !# | | ???????????????# < #g@# ! # | | ???????????????# g%H%; # | | ????????????????#+#######%;% ""# | | ????????????????????????# + ""# | | ????????????????????????# # T"# | | ????????????????????????# # ""# | | ????????????????????????# # ""# | | ????????????????????????#a#! # | | ????????????????????????# ###### | | ????????????????????????# #????? | | ????????????????????????# #????? | | ????????????????????????# #????? | | ????????????????????????# #????? | | ????????????????????????# #????? | | ????????????????????????# #????? | | ????????????????????????# ###### | | ????????????????????????# # # | | ????????????????????????# # # | | ????????????????????????# # ]# | | ?????????????????######## # # | | ?????????????????# * # # # | | ??????##+#???????# ! # # # | | ####### #???????# "" # # # | | """ # #???????# "T # # # | | """"" # +???????# "" + + ] # | +----------------------------------------------------+ Best States ------------- Heat Dissipation 41 Energy Generation 14 Energy Capacity 280 Matter Stores 300 Matter Capacity 300 Sight Range 16 Terrain Scan Density 10 Evasion (%) 55 Melee Accuracy 5 Item Schematics ----------------- None Robot Schematics ------------------ None Fabricated ------------ Nothing Repaired ---------- Nothing Alien Tech Used ----------------- None Achievements -------------- None Challenges ------------ None Game ------ Seed MomentumForceTendrils Manual? 0 Play Time 00:09:59 Cumulative 218.8 hours Start 2025.05.31 @ 17:40:16 End 2025.05.31 @ 17:49:45 Sessions 1 Manual Loads 0 Difficulty Rogue Special Mode None Game No. 125 Rogue 125 Adventurer 0 Explorer 0 Win Type - Total 9 Types 9/0/0/0/0/0/0/0/0/0 Lore% 67 Gallery% 65 Achievement% 60 Wizard Run 0 Options --------- Layout 1 ASCII 0 Keyboard 0 Movement Numpad Keybinds 0 Fullscreen 1 Font 24/Smallcaps Map View 50x35 Zoom Use 0% Tactical HUD 1 Map Filters NONE Filters NONE Steam 1 RUN: 68563e38-5352-4e28-a129-e34db3408e6b